[Event "SixDays Budapest GM-B 10-2024"]
[Site "Budapest"]
[Date "2024.10.03"]
[Round "6.1"]
[White "Galyas, Miklos"]
[Black "Wagh Suyog"]
[Result "0-1"]
[ECO "A46"]
[WhiteElo "2394"]
[BlackElo "2341"]
[Annotator "RC"]
[PlyCount "88"]
[EventDate "2024.09.24"]
[EventType "tourn"]
[EventCountry "HUN"]
[SourceTitle "playchess.com"]
[Source "ChessBase"]
[SourceQuality "1"]
[TimeControl "5400+30"]

1. d4 {[%emt 0:00:01]} Nf6 {[%emt 0:00:12]} 2. Nf3 {[%emt 0:00:09]} e6 {[%emt 0:00:26]} 3. g3 {[%emt 0:00:08]} b5 {[%emt 0:00:07]} 4. Bg2 {[%emt 0:00:05]} Bb7 {[%emt 0:00:58]} 5. O-O {[%emt 0:00:06]} c5 {[%emt 0:02:00]} 6. Bg5 {[%emt 0:01:39]} d5 {[%emt 0:14:48]} 7. a4 {[%emt 0:02:24]} b4 {[%emt 0:00:29]} 8. c3 {[%emt 0:01:40]} Na6 {[%emt 0:04:34]} 9. cxb4 {[%emt 0:11:58]} Nxb4 {[%emt 0:11:13]} 10. Nc3 {[%emt 0:09:22]} Be7 {[%emt 0:04:21]} 11. dxc5 {[%emt 0:00:43]} Bxc5 {[%emt 0:01:25]} 12. Rc1 {[%emt 0:01:12]} Rc8 {[%emt 0:05:16]} 13. Ne5 {[%emt 0:09:39]} h6 {[%emt 0:09:35]} 14. Bf4 {[%emt 0:05:21]} O-O {[%emt 0:02:02]} 15. Nb5 {[%emt 0:13:32]} Qb6 {[%emt 0:04:49]} 16. Qd2 {[%emt 0:08:43]} a6 {[%emt 0:05:19]} 17. Bxh6 {[%emt 0:04:28]} gxh6 {[%emt 0:24:14]} 18. Qxh6 {[%emt 0:01:26]} axb5 {[%emt 0:06:52]} 19. Qg5+ {[%emt 0:03:28]} Kh7 {[%emt 0:00:06]} 20. Qxf6 {[%emt 0:10:01]} Qd8 {[%emt 0:00:11]} 21. Qxd8 {[%emt 0:01:17]} Rfxd8 {[%emt 0:00:05]} 22. Nxf7 {[%emt 0:00:10]} Re8 {[%emt 0:01:17]} 23. axb5 {[%emt 0:00:23]} Kg7 {[%emt 0:00:35]} 24. Ne5 {[%emt 0:00:22]} Bd4 {[%emt 0:00:18]} 25. Nf3 {[%emt 0:02:09]} Bxb2 {[%emt 0:00:48]} 26. Rb1 {[%emt 0:00:59]} Rc2 {[%emt 0:00:35]} 27. e3 {[%emt 0:01:50]} Nd3 {[%emt 0:00:48]} 28. Nd4 {[%emt 0:01:13]} Bxd4 {[%emt 0:00:14]} 29. exd4 {[%emt 0:00:02]} Nb2 {[%emt 0:00:49]} 30. Rfc1 {[%emt 0:03:54]} Rxc1+ {[%emt 0:00:25]} 31. Rxc1 {[%emt 0:00:02]} Nc4 {[%emt 0:00:22]} 32. Ra1 {[%emt 0:01:02]} Kf6 {[%emt 0:00:41]} 33. Bf1 {[%emt 0:03:43]} Rb8 {[%emt 0:00:20]} 34. Rc1 {[%emt 0:01:20]} Ra8 {[%emt 0:00:25]} 35. h4 {[%emt 0:00:16]} Ra4 {[%emt 0:00:20]} 36. g4 {[%emt 0:01:10]} Rb4 {[%emt 0:00:28]} 37. Bd3 {[%emt 0:01:15]} Rxb5 {[%emt 0:00:26]} 38. g5+ {[%emt 0:00:26]} Kf7 {[%emt 0:00:48]} 39. Kh2 {[%emt 0:01:29]} Rb2 {[%emt 0:00:44]} 40. Rc2 {[%emt 0:00:35]} Rb3 {[%emt 0:00:18]} 41. Bxc4 {[%emt 0:00:22]} dxc4 {[%emt 0:00:01]} 42. Rxc4 {[%emt 0:00:06]} Kg6 {[%emt 0:00:08]} 43. Rc7 {[%emt 0:01:08]} Bd5 {[%emt 0:00:06]} 44. Rc8 {[%emt 0:00:15]} Kh5 {[%emt 0:00:32]} 0-1

[Event "SixDays Budapest GM-B 10-2024"]
[Site "Budapest"]
[Date "2024.10.03"]
[Round "6.2"]
[White "Vinter-Schou, Uffe"]
[Black "Grover, Sahaj"]
[Result "0-1"]
[ECO "C47"]
[WhiteElo "2307"]
[BlackElo "2496"]
[Annotator "TA"]
[PlyCount "94"]
[EventDate "2024.09.24"]
[EventType "tourn"]
[EventCountry "HUN"]
[SourceTitle "playchess.com"]
[Source "ChessBase"]
[SourceQuality "1"]
[TimeControl "5400+30"]

{[%evp 15,94,-19,-17,-25,0,-28,10,0,0,9,22,17,2,0,-9,0,22,18,41,20,31,-20,-9,-18,-13,-22,-29,-31,-34,-26,-25,-36,-47,-76,-81,-82,-84,-81,-81,-85,-74,-147,-152,-163,-148,-145,-131,-208,-214,-200,-203,-203,-190,-240,-248,-237,-196,-239,-235,-241,-169,-153,-170,-175,-171,-321,-314,-324,-324,-440,-404,-373,-343,-616,-535,-1125,-646,-1582,-1393,-29970,-29971]} 1. e4 {[%emt 0:00:02]} e5 {[%emt 0:19:39]} 2. Nf3 {[%emt 0:00:17]} Nc6 {[%emt 0:00:05]} 3. Nc3 {[%emt 0:00:26]} Nf6 {[%emt 0:00:07]} 4. g3 {[%emt 0:00:49]} Bc5 {[%emt 0:00:45]} 5. Bg2 {[%emt 0:00:12]} d6 {[%emt 0:00:05]} 6. d3 {[%emt 0:00:12]} a6 {[%emt 0:00:54]} 7. O-O {[%emt 0:00:25]} O-O {[%emt 0:00:09]} 8. h3 {[%emt 0:00:32]} h6 {[%emt 0:01:53]} 9. Kh2 {[%emt 0:01:16]} Be6 {[%emt 0:01:26]} 10. Be3 {[%emt 0:16:00]} Bb4 {[%emt 0:01:33]} 11. a3 {[%emt 0:10:50] The position is equal.} Bxc3 {[%emt 0:02:09]} 12. bxc3 {[%emt 0:00:02]} d5 {[%emt 0:00:12]} 13. exd5 $1 {[%emt 0:00:25]} Nxd5 {[%emt 0:00:30]} 14. Bc5 {[%emt 0:07:49]} Re8 {[%emt 0:00:46]} (14... Nxc3 15. Qe1 e4 16. dxe4 $18 (16. Qxc3 exf3 17. Bxf3 Re8 $14)) 15. c4 {[%emt 0:00:16]} Nf6 {[%emt 0:01:08]} 16. Nd2 {[%emt 0:01:09]} Bf5 {[%emt 0:01:24]} 17. Re1 {[%emt 0:11:09]} Qd7 {[%emt 0:00:32]} 18. Qf3 {[%emt 0:11:13]} (18. Bb4 $14) 18... Bg6 {[%emt 0:02:14]} 19. Rab1 {[%emt 0:03:46]} Rab8 {[%emt 0:03:52]} 20. g4 {[%emt 0:08:59]} Re6 {[%emt 0:03:24]} 21. Qg3 {[%emt 0:00:05]} b6 {[%emt 0:01:17]} 22. Be3 {[%emt 0:03:37]} Rbe8 {[%emt 0:00:07]} 23. Rbd1 {[%emt 0:08:08]} Nd4 {[%emt 0:00:56]} 24. Bxd4 {[%emt 0:00:26]} Qxd4 {[%emt 0:00:12] White is on the road to losing.} ({Much weaker is} 24... exd4 $6 25. f4 $11) 25. Nf1 {[%emt 0:05:43][%cal Bd2f1,Bf1e3,Be3d5][%mdl 32]} Qc3 {[%emt 0:03:47][%csl LRa3,LRc2] Black is much more active.} 26. Ne3 {[%emt 0:00:05]} Qxa3 {[%emt 0:00:09]} 27. Nd5 {[%emt 0:00:54] Repels Qc3} Qd6 {[%emt 0:02:52]} 28. d4 {[%emt 0:02:11] [#]} ({White should play} 28. Nxf6+ Rxf6 29. d4) 28... exd4 $1 $17 {[%emt 0:02:47]} 29. Rxe6 {[%emt 0:02:29]} fxe6 {[%emt 0:02:13]} 30. Nxc7 {[%emt 0:00:38]} Rd8 {[%emt 0:00:06]} 31. Rd2 {[%emt 0:02:05] [#]} (31. Qxd6 $17 {was called for.} Rxd6 32. Rd2) 31... e5 $1 $19 {[%emt 0:00:24]} 32. Nd5 {[%emt 0:01:05]} Ne4 {[%emt 0:01:59]} 33. Bxe4 {[%emt 0:00:03]} Bxe4 {[%emt 0:00:08]} 34. f4 {[%emt 0:00:24]} exf4 {[%emt 0:06:02]} 35. Qxf4 {[%emt 0:00:11]} Bxd5 {[%emt 0:01:34]} 36. Qxd6 {[%emt 0:00:02]} Rxd6 {[%emt 0:00:10]} 37. Rxd4 {[%emt 0:00:14][%cal Oh2g3] [#]} Rc6 $1 {[%emt 0:00:05]} 38. cxd5 {[%emt 0:00:40]} Rxc2+ {[%emt 0:00:06][%mdl 4096] Endgame. KR-KR} 39. Kg3 {[%emt 0:00:02]} Kf7 {[%emt 0:00:08]} 40. Re4 {[%emt 0:00:54]} (40. d6 $142 Ke8 41. Re4+ Kd7 42. Re7+ Kxd6 43. Rxg7) 40... a5 {[%emt 0:00:19]} 41. Kf4 {[%emt 0:00:43]} b5 {[%emt 0:00:37]} 42. Ke3 {[%emt 0:00:25]} Rc3+ {[%emt 0:00:40]} 43. Kd2 {[%emt 0:00:26]} Rc5 {[%emt 0:00:07]} ({Not} 43... Rxh3 44. d6 Rh2+ 45. Kd1 $11) 44. Re5 {[%emt 0:01:08]} (44. d6) 44... b4 {[%emt 0:00:09]} 45. Kd3 {[%emt 0:00:13]} b3 {[%emt 0:00:06] White must now prevent ...b2.} 46. Re2 {[%emt 0:01:06]} a4 {[%emt 0:00:20][%cal Oa4a3] Hoping for ...a3!} 47. Kd4 {[%emt 0:00:11]} Rc2 {[%emt 0:00:39] Weighted Error Value: White=0.62/Black=0.08 (flawless) .  Mistake:       	White=5     	---        Inaccurate:     	White=5     	Black=1      OK:         	White=13    	Black=21     Best:        	White=1     	Black=1      Strong:       	White=1     	---} 0-1

[Event "SixDays Budapest GM-B 10-2024"]
[Site "Budapest"]
[Date "2024.10.03"]
[Round "6.3"]
[White "Boyer, Mahel"]
[Black "Tippa, Aswath Srisai"]
[Result "1/2-1/2"]
[ECO "A06"]
[WhiteElo "2489"]
[BlackElo "1648"]
[Annotator "TA"]
[PlyCount "83"]
[EventDate "2024.09.24"]
[EventType "tourn"]
[EventCountry "HUN"]
[SourceTitle "playchess.com"]
[Source "ChessBase"]
[SourceQuality "1"]
[TimeControl "5400+30"]

{[%evp 12,83,49,56,53,54,93,17,49,73,82,76,80,57,99,71,147,142,136,45,36,-50,0,-240,-243,-214,-198,-215,-238,-252,-264,-238,-160,-168,-169,-168,-178,-207,-117,-128,0,0,0,0,0,-9,0,0,122,0,0,0,116,0,0,0,100,3,13,13,13,13,13,13,13,13,13,13,13,13,7,10,6,13]} 1. Nf3 {[%emt 0:12:34]} d5 {[%emt 0:00:36]} 2. g3 {[%emt 0:00:17]} Nf6 {[%emt 0:00:38]} 3. Bg2 {[%emt 0:00:23]} c5 {[%emt 0:00:39]} 4. O-O {[%emt 0:00:16]} Nc6 {[%emt 0:01:31]} 5. d4 {[%emt 0:00:09]} e6 {[%emt 0:01:12]} 6. c4 {[%emt 0:00:34]} dxc4 {[%emt 0:00:50]} 7. dxc5 {[%emt 0:02:49]} Qxd1 {[%emt 0:00:49] E04: Open Catalaans: 5 Pf3.} 8. Rxd1 {[%emt 0:00:04]} Bxc5 {[%emt 0:00:19] OK} 9. Nfd2 {[%emt 0:02:37] Fout (0.8)} (9. Nbd2 $1 $16) 9... Ne5 {[%emt 0:09:14] Onnauwkeurig} 10. Na3 {[%emt 0:01:52]} Bxa3 {[%emt 0:10:25] OK} 11. bxa3 {[%emt 0:00:06]} Nd5 {[%emt 0:03:09]} 12. Ne4 {[%emt 0:12:16][%mdl 1024] Wit heeft sterke compensatie. OK} c3 $146 {[%emt 0:01:00] Ontwijkt Bb2. Onnauwkeurig} ({Predecessor:} 12... O-O 13. Bb2 Nc6 14. Rac1 b5 15. Nc5 Rd8 16. e4 Nb6 17. Rxd8+ Nxd8 18. Rd1 Nb7 {½-½ Gupta,A (2606)-Yakubboev,N (2587) Asian Continental blitz op 2019 (5)}) 13. a4 {[%emt 0:09:27]} a5 {[%emt 0:08:00] Fout (0.8)} (13... c2 14. Rd2 O-O) 14. Nd6+ $16 {[%emt 0:04:42] Beste (Gemakkelijk)} Ke7 {[%emt 0:00:59] OK} {Wit zou moeten spelen} 15. Nb5 {[%emt 0:23:14] Wit is actiever. Fout (0.9)} (15. Ba3 $1 $16 Nb4 16. f4) 15... Bd7 $14 {[%emt 0:02:08] Hoopt vervolgens op ...Bxb5. OK} 16. Ba3+ {[%emt 0:09:04] Fout (0.9)} (16. Bxd5 $14 exd5 17. Nxc3 (17. Rxd5 Nc4 $16)) 16... Nb4 {[%emt 0:01:23] Fout (0.5)} (16... Kf6 $15 17. Rxd5 exd5 18. Nxc3 Bc6) 17. Rd4 $2 {[%emt 0:02:08] en Wit blijft veilig. Verliest partij (2.4)} (17. Bxb7 $2 Rab8 18. Be4 (18. Ba6 $2 Rb6 $19) 18... Bxb5 19. axb5 Rxb5 $19) (17. Nxc3 $11 Nc4 18. Bc1) 17... Bxb5 $19 {[%emt 0:04:02] Beste (Gemakkelijk)} 18. axb5 {[%emt 0:00:04][%cal Rd4b4] Sterke dreiging met Rxb4.} Rac8 $1 {[%emt 0:06:40] En nu zou ...Nc4 winnen. Sterk} 19. Bxb7 {[%emt 0:12:58]} Rc4 {[%emt 0:01:46] OK} 20. Re4 {[%emt 0:03:34]} Rxe4 {[%emt 0:02:57] OK} 21. Bxe4 {[%emt 0:00:02]} Nc4 {[%emt 0:00:34] Onnauwkeurig} 22. Bc1 {[%emt 0:00:31] OK} Nd6 {[%emt 0:03:16][%csl LRb5,LRe4] OK} 23. a3 {[%emt 0:01:14] OK} Nxe4 {[%emt 0:02:28] Beste (Gemakkelijk)} 24. axb4 {[%emt 0:00:03] OK} axb4 {[%emt 0:00:15][%mdl 4096] Eindspel. KRB-KRN. Onnauwkeurig} 25. Ra4 {[%emt 0:00:13]} {Zwart zou moeten proberen} Rd8 {[%emt 0:20:52] Fout (1.3)} (25... Nd6 $1 $17 {...b3 is de sterke dreiging.} 26. Bg5+ (26. Rxb4 Ra8 $17) 26... f6 27. Ra7+ Ke8 (27... Kd8 $2 28. Bc1 $19)) 26. Rxb4 $11 {[%emt 0:00:05][%cal Oc1a3] OK} Rd1+ {[%emt 0:00:21] OK} 27. Kg2 {[%emt 0:00:02][%cal Ob5b6] Zwart moet nu b6! voorkomen.} Nd6 {[%emt 0:00:09]} 28. Ba3 {[%emt 0:02:40] OK} Ra1 {[%emt 0:05:06]} (28... Ke8 $5 29. b6 $8 Ra1 $11 (29... Nb7 30. Rc4 $16)) 29. Ra4 {[%emt 0:00:10] OK} Kd8 {[%emt 0:11:16] Fout (1.2)} (29... Ke8 $11 30. Ra8+ Kd7 31. Ra7+ Ke8 32. Ra8+ Kd7 33. Ra7+ Kd8) {Beter is} 30. Ra8+ {[%emt 0:00:31] Fout (1.2)} (30. Ra6 $1 $16 Nxb5 31. Be7+ Kxe7 32. Rxa1) 30... Kd7 {[%emt 0:00:10] OK} 31. Ra7+ {[%emt 0:00:07] Beste (Gemakkelijk)} Kd8 {[%emt 0:01:22] [#] Houdt de partij in balans. Fout (1.2)} (31... Ke8 $1 $11 32. Ra8+ Kd7 33. Ra7+ Ke8 34. Ra8+ Kd7) {Wit kan overwegen. Wit moet spelen} 32. Ra8+ {[%emt 0:00:23] Fout (1.2)} (32. Ra6 $1 $16 Nxb5 33. Be7+ Kxe7 34. Rxa1) 32... Kd7 {[%emt 0:00:04] OK} 33. Ra7+ {[%emt 0:00:10] Beste (Gemakkelijk)} Kd8 {[%emt 0:00:34] [#] Fout (1.0)} (33... Ke8 $1 $11 34. Ra8+ Kd7) 34. b6 {[%emt 0:01:29] Fout (1.0)} (34. Ra6 $1 $16 Nxb5 35. Be7+ Kxe7 36. Rxa1) 34... c2 {[%emt 0:00:16][%cal Oa1a3] OK. De stelling is in evenwicht.} 35. b7 $1 {[%emt 0:00:15] Sterk} Rb1 $1 {[%emt 0:00:08] Sterk} 36. Ra8+ {[%emt 0:00:41] Beste (Gemakkelijk)} ({Ondeugdelijk is} 36. Bxd6 c1=Q (36... c1=B $2 {vergaat.} 37. b8=Q+ Rxb8 38. Bxb8 $18) 37. b8=Q+ Rxb8 38. Bxb8 Qc6+ 39. Kg1 Ke8 $17) 36... Kc7 {[%emt 0:00:06] [#] Beste (Gemakkelijk)} 37. b8=Q+ {[%emt 0:00:41] OK} Rxb8 {[%emt 0:00:10] Beste (Gemakkelijk)} 38. Rxb8 {[%emt 0:00:07]} c1=Q $1 {[%emt 0:01:18] Sterk} 39. Bxc1 {[%emt 0:00:08] OK} Kxb8 {[%emt 0:00:06] OK} 40. Bf4 {[%emt 0:00:32]} Kc7 {[%emt 0:00:09] OK} 41. Kf3 {[%emt 0:00:04]} f6 {[%emt 0:00:14]} 42. e4 {[%emt 0:01:30] En Wit is de gelukkige verdediger.   Blunder waarde: Wit=0.35/Zwart=0.31.  Verliest partij:   	Wit=1      	---        Fout:        	Wit=6      	Zwart=6      Onnauwkeurig:    	---       	Zwart=4      OK:         	Wit=9      	Zwart=13     Beste:        	Wit=4      	Zwart=4      Sterk:        	Wit=1      	Zwart=3} 1/2-1/2

[Event "SixDays Budapest GM-B 10-2024"]
[Site "Budapest"]
[Date "2024.10.03"]
[Round "6.4"]
[White "Xie, Felix"]
[Black "Kovalev, Andrei"]
[Result "0-1"]
[ECO "B41"]
[WhiteElo "2320"]
[BlackElo "2412"]
[Annotator "RC"]
[PlyCount "76"]
[EventDate "2024.09.24"]
[EventType "tourn"]
[EventCountry "HUN"]
[SourceTitle "playchess.com"]
[Source "ChessBase"]
[SourceQuality "1"]
[TimeControl "5400+30"]

1. e4 {[%emt 0:00:22]} c5 {[%emt 0:02:42]} 2. Nf3 {[%emt 0:00:18]} e6 {[%emt 0:00:14]} 3. d4 {[%emt 0:00:44]} cxd4 {[%emt 0:00:06]} 4. Nxd4 {[%emt 0:00:06]} a6 {[%emt 0:00:06]} 5. g3 {[%emt 0:00:59]} d5 {[%emt 0:02:07]} 6. Nb3 {[%emt 0:00:09]} Nf6 {[%emt 0:00:13]} 7. exd5 {[%emt 0:00:09]} exd5 {[%emt 0:00:12]} 8. Bg2 {[%emt 0:00:11]} Bb4+ {[%emt 0:00:13]} 9. c3 {[%emt 0:00:09]} Be7 {[%emt 0:00:53]} 10. O-O {[%emt 0:00:21]} Nc6 {[%emt 0:05:51]} 11. Bg5 {[%emt 0:06:12]} Be6 {[%emt 0:01:36]} 12. Nd4 {[%emt 0:04:07]} Nxd4 {[%emt 0:09:21]} 13. Qxd4 {[%emt 0:00:07]} h6 {[%emt 0:00:34]} 14. Bf4 {[%emt 0:04:17]} Rc8 {[%emt 0:02:46]} 15. Nd2 {[%emt 0:02:37]} O-O {[%emt 0:03:22]} 16. Qd3 {[%emt 0:04:19]} Qd7 {[%emt 0:04:10]} 17. Nf3 {[%emt 0:03:49]} Bf5 {[%emt 0:02:19]} 18. Qd1 {[%emt 0:01:14]} Bh3 {[%emt 0:06:00]} 19. Be5 {[%emt 0:06:29]} Bxg2 {[%emt 0:05:53]} 20. Kxg2 {[%emt 0:00:07]} Ne4 {[%emt 0:00:51]} 21. Qd3 {[%emt 0:03:04]} Rfd8 {[%emt 0:01:31]} 22. Bd4 {[%emt 0:09:09]} Bd6 {[%emt 0:04:01]} 23. Bb6 {[%emt 0:04:38]} Bc7 {[%emt 0:02:58]} 24. Bxc7 {[%emt 0:00:07]} Qxc7 {[%emt 0:04:30]} 25. Nd4 {[%emt 0:03:26]} Qd7 {[%emt 0:08:26]} 26. Rad1 {[%emt 0:02:42]} Re8 {[%emt 0:01:17]} 27. Rfe1 {[%emt 0:07:04]} Re5 {[%emt 0:08:01]} 28. Nf3 {[%emt 0:18:17]} Rh5 {[%emt 0:03:20]} 29. h4 {[%emt 0:02:10]} Qg4 {[%emt 0:00:55]} 30. Qe2 {[%emt 0:07:02]} Rf5 {[%emt 0:04:09]} 31. Nh2 {[%emt 0:02:58]} Qg6 {[%emt 0:02:44]} 32. Rf1 {[%emt 0:00:35]} Rc6 {[%emt 0:03:31]} 33. Qg4 {[%emt 0:02:28]} Qf6 {[%emt 0:02:43]} 34. Qe2 {[%emt 0:01:20]} Re6 {[%emt 0:00:36]} 35. Qc2 {[%emt 0:00:06]} Qg6 {[%emt 0:00:55]} 36. h5 {[%emt 0:04:40]} Qxh5 {[%emt 0:02:59]} 37. Rd3 {[%emt 0:00:57]} Nxf2 {[%emt 0:01:50]} 38. Rf3 {[%emt 0:01:03]} Qh3+ {[%emt 0:00:38]} 0-1

[Event "SixDays Budapest GM-B 10-2024"]
[Site "Budapest"]
[Date "2024.10.03"]
[Round "6.5"]
[White "Lee, Junhyeok"]
[Black "Wu, Yixing"]
[Result "1/2-1/2"]
[ECO "B57"]
[WhiteElo "2364"]
[BlackElo "2324"]
[Annotator "TA"]
[PlyCount "98"]
[EventDate "2024.09.24"]
[EventType "tourn"]
[EventCountry "HUN"]
[SourceTitle "playchess.com"]
[Source "ChessBase"]
[SourceQuality "1"]
[TimeControl "5400+30"]

{[%evp 17,98,22,27,30,27,0,0,0,0,-19,-17,-18,52,25,33,40,20,30,43,34,37,8,71,70,92,98,104,95,111,95,103,91,91,72,127,124,166,167,192,229,388,356,698,632,639,687,683,686,1067,1059,1351,1288,1857,1770,2240,0,29991,0,0,0,0,0,0,0,0,0,0,0,0,0,0,0,0,0,0,0,0,0,0,0,0,0,0]} 1. e4 {[%emt 0:00:03]} c5 {[%emt 0:00:05]} 2. Nf3 {[%emt 0:00:33]} d6 {[%emt 0:00:04]} 3. d4 {[%emt 0:01:06]} cxd4 {[%emt 0:00:04]} 4. Nxd4 {[%emt 0:00:03]} Nf6 {[%emt 0:00:04]} 5. Nc3 {[%emt 0:00:03]} Nc6 {[%emt 0:00:04]} 6. Bc4 {[%emt 0:00:08]} Qb6 {[%emt 0:00:06]} 7. Nb3 {[%emt 0:00:52]} e6 {[%emt 0:00:06]} 8. Bf4 $1 {[%emt 0:00:21][%mdl 4] is more profitable than 8.0-0 at the moment.} Ne5 {[%emt 0:00:06]} 9. Be2 {[%emt 0:00:04]} Bd7 {[%emt 0:00:27]} 10. Qd2 {[%emt 0:00:38] B57: Classical Sicilian: Sozin with 6...Qb6.} Be7 {[%emt 0:00:14]} 11. f3 {[%emt 0:08:56]} a6 {[%emt 0:06:12]} 12. g4 {[%emt 0:02:31][%cal Bg2g4,Bg4g5][%mdl 32]} Qc7 {[%emt 0:00:50]} 13. g5 $146 {[%emt 0:16:16]} ({Predecessor:} 13. O-O-O b5 14. a3 Rc8 15. Kb1 Nc4 16. Bxc4 bxc4 17. Nc1 e5 18. g5 Nh5 19. Be3 {½-½ Lorenzo de la Riva,L (2404)-Abal Cores,L (2339) ESP-chT CECLUB Div1 2023 (6.3)}) 13... Nh5 {[%emt 0:00:28]} 14. Be3 {[%emt 0:00:09]} Nc4 {[%emt 0:02:49]} (14... b5 $11) 15. Bxc4 $14 {[%emt 0:00:18]} Qxc4 {[%emt 0:00:04]} 16. O-O-O {[%emt 0:02:42][%cal Oe3c5]} b5 {[%emt 0:06:03][%cal Bb7b5,Bb5b4][%mdl 32]} 17. Kb1 {[%emt 0:03:31]} b4 {[%emt 0:07:00]} 18. Ne2 $36 {[%emt 0:00:23][%mdl 2048] White has some pressure.} a5 {[%emt 0:03:34][%cal Ba6a5,Ba5a4][%mdl 32]} 19. Nc5 {[%emt 0:08:09]} Bb5 {[%emt 0:03:33]} (19... Bc6 $11 20. Nd3 (20. b3 Qb5 $11) 20... Rd8) 20. Nd3 $16 {[%emt 0:00:30]} a4 {[%emt 0:07:00]} 21. Nd4 $1 {[%emt 0:01:36][%cal Ob2b3]} (21. Qxb4 $2 Qxb4 22. Nxb4 Bxe2 $19) 21... Bd7 {[%emt 0:06:32][%cal Ob4b3]} 22. Nxb4 {[%emt 0:10:39]} O-O {[%emt 0:05:50]} 23. c3 {[%emt 0:03:11]} Rfb8 {[%emt 0:04:30]} 24. a3 {[%emt 0:07:16]} g6 {[%emt 0:03:44]} 25. Ne2 {[%emt 0:02:07]} Ra5 {[%emt 0:12:15]} (25... e5 $142) 26. Ng3 {[%emt 0:02:56]} Ng7 {[%emt 0:00:03]} 27. h4 {[%emt 0:00:48][%cal Bh2h4,Bh4h5,Bh5g6][%mdl 32] Strongly threatening h5.} Rab5 {[%emt 0:06:29]} 28. h5 {[%emt 0:06:43]} e5 $2 {[%emt 0:00:00]} (28... Be8 29. Ka1 (29. h6 Nh5 $18) 29... Bf8) 29. hxg6 $18 {[%emt 0:00:12]} Be6 $2 {[%emt 0:00:23]} (29... Rxb4 30. gxh7+ (30. cxb4 Be6 $18) (30. axb4 fxg6 31. Kc1 Be6 $16) 30... Kh8 31. axb4 (31. cxb4 Be6 $14) 31... Be6) 30. Qh2 {[%emt 0:01:12]} fxg6 {[%emt 0:01:35][%cal Rb5b4]} 31. Qxh7+ {[%emt 0:00:06]} Kf7 {[%emt 0:00:33][%cal Rb5b4]} 32. Rh6 {[%emt 0:17:23]} Rxb4 {[%emt 0:00:04]} 33. Qxg6+ {[%emt 0:00:34]} Kg8 {[%emt 0:00:00]} 34. axb4 {[%emt 0:00:39] Rh7 would kill now.} ({Not} 34. cxb4 Qa2+ 35. Kc1 Rc8+ 36. Kd2 Qb3 37. Qh7+ Kf7 38. g6+ Ke8 $16) 34... Qa2+ {[%emt 0:09:39]} 35. Kc2 {[%emt 0:00:31][%cal Bb1c2,Bc2d3,Bd3c4,Bc4d5,Bd5c6,Bc6b7,Bb7a8][%mdl 32] White wants to mate with Nh5.} a3 {[%emt 0:10:14]} 36. Nh5 $2 {[%emt 0:01:09]} (36. Rdh1 $18 {[%csl Gh1][%cal Rh6h8]} Kf8 37. Rh7 (37. Rh8+ Bg8 $18)) 36... Qxb2+ $11 {[%emt 0:00:29]} 37. Kd3 {[%emt 0:00:03][%csl Gh5][%cal Rg6g7]} Bc4+ $1 {[%emt 0:00:19]} 38. Kxc4 {[%emt 0:00:03][%csl Gh5][%cal Rg6g7]} Qe2+ {[%emt 0:00:05]} 39. Kd5 {[%emt 0:01:21][%csl Gh5][%cal Rg6g7]} Qxd1+ {[%emt 0:02:32]} 40. Bd4 {[%emt 0:01:06][%csl Gh5][%cal Rg6g7]} Qb3+ {[%emt 0:00:06]} 41. c4 {[%emt 0:00:47][%csl Gh5][%cal Rg6g7]} Rb5+ {[%emt 0:00:00]} 42. Bc5 {[%emt 0:01:54]} Rxc5+ {[%emt 0:00:12]} 43. bxc5 {[%emt 0:00:04][%csl Gh5][%cal Rg6g7]} Qd1+ {[%emt 0:00:06]} 44. Kc6 {[%emt 0:00:08][%csl Gh5][%cal Rg6g7]} Qa4+ {[%emt 0:00:03]} 45. Kb7 {[%emt 0:01:15][%csl Gh5][%cal Rg6g7]} Qb4+ {[%emt 0:00:19]} 46. Ka8 {[%emt 0:00:21][%csl Gh5][%cal Rg6g7]} Qa5+ {[%emt 0:00:45]} 47. Kb7 $1 {[%emt 0:00:03][%csl Gh5][%cal Rg6g7]} Qb4+ {[%emt 0:00:03]} 48. Ka8 {[%emt 0:00:04][%csl Gh5][%cal Rg6g7]} Qa5+ {[%emt 0:00:05]} 49. Kb7 {[%emt 0:00:04][%csl Gh5][%cal Rg6g7]} Qb4+ {[%emt 0:00:07]} 1/2-1/2